lending/lending_fUSD_20250913
["ID","MTS","AMOUNT","RATE_DAILY","PERIOD"]
[385358389,1757790789649,-757.51,0.00030684,2]
[385358390,1757790789658,-400.0,0.00030684,2]
[385358391,1757790789667,-1369.33,0.00030684,2]
[385358392,1757790789676,-976.5,0.00030684,2]
[385358393,1757790789685,-714.21,0.00030684,2]
[385358394,1757790789694,-1200.51,0.00030684,2]
[385358395,1757790789704,-429.54,0.00030684,2]
[385358396,1757790789714,-931.9,0.00030684,2]
[385358397,1757790789723,-767.06,0.00030684,2]
[385358398,1757790789732,-522.36,0.00030684,2]
[385358399,1757790789741,-464.29,0.00030684,2]
[385358400,1757790789750,-400.0,0.00030684,2]
[385358401,1757790789758,-1050.24,0.00030684,2]
[385358402,1757790789767,-334.36,0.00030684,2]
[385358403,1757790789776,-712.0,0.00030684,2]
[385358404,1757790789786,-770.1,0.00030684,2]
[385358405,1757790789795,-1340.61,0.00030684,2]
[385358406,1757790789804,-503.78,0.00030684,2]
[385358407,1757790789814,-744.56,0.00030684,2]
[385358408,1757790789823,-933.78,0.00030684,2]
[385358409,1757790789831,-917.05,0.00030684,2]
[385358410,1757790789840,-601.03,0.00030684,2]
[385358411,1757790789850,-1166.06,0.00030684,2]
[385358412,1757790789859,-408.67,0.00030684,2]
[385358413,1757790789869,-744.95,0.00030684,2]
[385358414,1757790789878,-962.63,0.00030684,2]
[385358415,1757790789887,-944.97,0.00030684,2]
[385358416,1757790789897,-697.23,0.00030684,2]
[385358417,1757790789906,-1128.5,0.00030684,2]
[385358418,1757790789915,-1287.15,0.00030684,2]
[385358419,1757790789923,-400.0,0.00030684,2]
[385358420,1757790789933,-1140.31,0.00030684,2]
[385358421,1757790789942,-1121.16,0.00030684,2]
[385358422,1757790789951,-883.84,0.00030684,2]
[385358423,1757790789960,-513.06858902,0.00030684,2]
[385358424,1757790789968,-400.0,0.00030684,2]
[385358425,1757790789978,-400.0,0.00030684,2]
[385358426,1757790789987,-513.88,0.00030684,2]
[385358427,1757790789996,-766.79,0.00030684,2]
[385358428,1757790790006,-836.28,0.00030684,2]
[385358429,1757790790015,-400.0,0.00030684,2]
[385358430,1757790790023,-1062.97,0.00030684,2]
[385358431,1757790790033,-701.46,0.00030684,2]
[385358432,1757790790042,-400.0,0.00030684,2]
[385358433,1757790790051,-400.0,0.00030684,2]
[385358434,1757790790060,-1010.43,0.00030684,2]
[385358435,1757790790069,-618.9,0.00030684,2]
[385358436,1757790790078,-740.73,0.00030684,2]
[385358437,1757790790087,-400.0,0.00030684,2]
[385358438,1757790790096,-617.0,0.00030684,2]
[385358439,1757790790105,-955.87,0.00030684,2]
[385358440,1757790790113,-400.0,0.00030684,2]
[385358441,1757790790123,-1394.15,0.00030684,2]
[385358442,1757790790131,-645.46,0.00030684,2]
[385358443,1757790790140,-475.16,0.00030684,2]
[385358444,1757790790148,-400.0,0.00030684,2]
[385358445,1757790790157,-400.0,0.00030684,2]
[385358446,1757790790166,-1201.25,0.00030684,2]
[385358447,1757790790175,-1420.48,0.00030684,2]
[385358448,1757790790184,-436.7,0.00030684,2]
[385358449,1757790790195,-336.73500208,0.00030684,2]
[385358450,1757790790204,-886.97,0.00030684,2]
[385358451,1757790790212,-695.44,0.00030684,2]
[385358452,1757790790222,-869.21,0.00030684,2]
[385358453,1757790790231,-1459.76,0.00030684,2]
[385358454,1757790790242,-563.58,0.00030684,2]
[385358455,1757790790252,-400.0,0.00030684,2]
[385358456,1757790790261,-565.26,0.00030684,2]
[385358457,1757790790270,-1134.89,0.00030684,2]
[385358458,1757790790279,-404.56,0.00030684,2]
[385358459,1757790790288,-734.93,0.00030684,2]
[385358460,1757790790297,-1149.23,0.00030684,2]
[385358461,1757790790306,-400.0,0.00030684,2]
[385358462,1757790790315,-1190.66,0.00030684,2]
[385358463,1757790790323,-656.39,0.00030684,2]
[385358464,1757790790332,-1130.2,0.00030684,2]
[385358465,1757790790342,-914.37,0.00030684,2]
[385358466,1757790790351,-869.45,0.00030684,2]
[385358467,1757790790360,-400.0,0.00030684,2]
[385358468,1757790790368,-459.11,0.00030684,2]
[385358469,1757790790378,-1022.06,0.00030684,2]
[385358470,1757790790387,-400.0,0.00030684,2]
[385358471,1757790790396,-216.11592853,0.00030684,2]
[385358472,1757790790405,-516.71,0.00030684,2]
[385358473,1757790790414,-400.0,0.00030684,2]
[385358474,1757790790423,-400.0,0.00030684,2]
[385358475,1757790790433,-400.0,0.00030684,2]
[385358476,1757790790442,-1379.73,0.00030684,2]
[385358477,1757790790451,-899.94,0.00030684,2]
[385358478,1757790790460,-866.46,0.00030684,2]
[385358479,1757790790469,-400.0,0.00030684,2]
[385358480,1757790790478,-556.4,0.00030684,2]
[385358481,1757790790489,-400.0,0.00030684,2]
[385358482,1757790790500,-1195.99,0.00030684,2]
[385358483,1757790790509,-518.54,0.00030684,2]
[385358484,1757790790517,-1740.08,0.00030684,2]
[385358485,1757790790526,-1006.76,0.00030684,2]
[385358486,1757790790535,-400.0,0.00030684,2]
[385358487,1757790790544,-400.0,0.00030684,2]
[385358488,1757790790553,-400.0,0.00030684,2]
[385358489,1757790790562,-668.89,0.00030684,2]
[385358490,1757790790571,-529.54,0.00030684,2]
[385358491,1757790790581,-927.44,0.00030684,2]
[385358492,1757790790594,-662.77,0.00030684,2]
[385358493,1757790790603,-400.0,0.00030684,2]
[385358494,1757790790612,-586.65,0.00030684,2]
[385358495,1757790790620,-744.19,0.00030684,2]
[385358496,1757790790630,-899.11,0.00030684,2]
[385358497,1757790790639,-770.78,0.00030684,2]
[385358498,1757790790648,-644.35,0.00030684,2]
[385358499,1757790790657,-714.15,0.00030684,2]
[385358500,1757790790666,-453.23,0.00030684,2]
[385358501,1757790790675,-1002.56,0.00030684,2]
[385358502,1757790790683,-809.12,0.00030684,2]
[385358503,1757790790693,-400.0,0.00030684,2]
[385358504,1757790790704,-400.0,0.00030684,2]
[385358505,1757790790713,-400.0,0.00030684,2]
[385358506,1757790790722,-400.0,0.00030684,2]
[385358507,1757790790732,-864.64,0.00030684,2]
[385358508,1757790790742,-400.0,0.00030684,2]
[385358509,1757790790752,-836.53,0.00030684,2]
[385358510,1757790790761,-400.0,0.00030684,2]
[385358511,1757790790770,-400.0,0.00030684,2]
[385358512,1757790790780,-322.96357785,0.00030684,2]
[385358513,1757790790789,-400.0,0.00030684,2]
[385358514,1757790790799,-800.39,0.00030684,2]
[385358515,1757790790808,-759.84,0.00030684,2]
[385358516,1757790790818,-438.06,0.00030684,2]
[385358517,1757790790829,-1067.29,0.00030684,2]
[385358518,1757790790839,-483.11,0.00030684,2]
[385358519,1757790790849,-890.46,0.00030684,2]
[385358520,1757790790859,-621.88,0.00030684,2]
[385358521,1757790790868,-2863.78,0.00030684,2]
[385358522,1757790790878,-400.0,0.00030684,2]
[385358523,1757790790888,-1123.98,0.00030684,2]
[385358524,1757790790897,-440.32,0.00030684,2]
[385358525,1757790790907,-757.94,0.00030684,2]
[385358526,1757790790915,-400.0,0.00030684,2]
[385358527,1757790790924,-557.63,0.00030684,2]
[385358528,1757790790934,-861.65,0.00030684,2]
[385358529,1757790790942,-803.76,0.00030684,2]
[385358530,1757790790955,-835.94,0.00030684,2]
[385358531,1757790790964,-434.25,0.00030684,2]
[385358532,1757790790973,-578.44,0.00030684,2]
[385358533,1757790790982,-550.07,0.00030684,2]
[385358534,1757790790991,-800.87,0.00030684,2]
[385358535,1757790791000,-541.06,0.00030684,2]
[385358536,1757790791009,-400.0,0.00030684,2]
[385358537,1757790791018,-400.0,0.00030684,2]
[385358538,1757790791027,-652.82,0.00030684,2]
[385358539,1757790791036,-400.0,0.00030684,2]
[385358540,1757790791045,-423.72,0.00030684,2]
[385358541,1757790791180,-416.96800557,0.00030684,2]
[385358542,1757790791190,-1300.44,0.00030684,2]
[385358543,1757790791202,-438.35430458,0.00030684,2]
[385358544,1757790791211,-439.16,0.00030684,2]
[385358545,1757790791221,-400.0,0.00030684,2]
[385358546,1757790791230,-826.3,0.00030684,2]
[385358547,1757790791240,-787.45,0.00030684,2]
[385358548,1757790791250,-535.57,0.00030684,2]
[385358549,1757790791260,-800.47,0.00030684,2]
[385358550,1757790791270,-1253.6,0.00030684,2]
[385358551,1757790791279,-544.69,0.00030684,2]
[385358552,1757790791289,-400.0,0.00030684,2]
[385358553,1757790791299,-400.0,0.00030684,2]
[385358554,1757790791309,-944.98,0.00030684,2]
[385358555,1757790791319,-842.01,0.00030684,2]
[385358556,1757790791335,-1082.49,0.00030684,2]
[385358557,1757790791345,-556.97,0.00030684,2]
[385358558,1757790791356,-652.8,0.00030684,2]
[385358559,1757790791367,-489.49,0.00030684,2]
[385358560,1757790791379,-400.0,0.00030684,2]
[385358561,1757790791388,-207.01066005,0.00030684,2]
[385358562,1757790791398,-400.0,0.00030684,2]
[385358563,1757790791408,-400.0,0.00030684,2]
[385358564,1757790791419,-589.14,0.00030684,2]
[385358565,1757790791429,-890.6,0.00030684,2]
[385358566,1757790791438,-439.06,0.00030684,2]
[385358567,1757790791449,-583.29,0.00030684,2]
[385358568,1757790791460,-708.58,0.00030684,2]
[385358569,1757790791470,-531.52,0.00030684,2]
[385358570,1757790791480,-400.0,0.00030684,2]
[385358571,1757790791494,-1252.15,0.00030684,2]
[385358572,1757790791505,-947.61,0.00030684,2]
[385358573,1757790791515,-400.0,0.00030684,2]
[385358574,1757790791527,-1050.56,0.00030684,2]
[385358575,1757790791537,-400.0,0.00030684,2]
[385358576,1757790791547,-253.63345363,0.00030684,2]
[385358577,1757790791557,-282.72469507,0.00030684,2]
[385358578,1757790791580,-872.42,0.00030684,2]
[385358579,1757790791591,-400.0,0.00030684,2]
[385358580,1757790791601,-791.71,0.00030684,2]
[385358581,1757790791611,-407.96,0.00030684,2]
[385358582,1757790791620,-400.0,0.00030684,2]
[385358583,1757790791630,-400.0,0.00030684,2]
[385358584,1757790791640,-983.81,0.00030684,2]
[385358585,1757790791651,-868.8,0.00030684,2]
[385358586,1757790791661,-2593.64,0.00030684,2]
[385358587,1757790791671,-846.53,0.00030684,2]
[385358588,1757790791682,-730.89,0.00030684,2]
[385358589,1757790791693,-400.0,0.00030684,2]
[385358590,1757790791704,-400.0,0.00030684,2]
[385358591,1757790791713,-785.21,0.00030684,2]
[385358592,1757790791724,-400.0,0.00030684,2]
[385358593,1757790791734,-400.0,0.00030684,2]
[385358594,1757790791744,-447.29,0.00030684,2]
[385358595,1757790791755,-964.92,0.00030684,2]
[385358596,1757790791764,-400.0,0.00030684,2]
[385358597,1757790791774,-428.63,0.00030684,2]
[385358598,1757790791783,-759.47,0.00030684,2]
[385358599,1757790791794,-400.0,0.00030684,2]
[385358600,1757790791804,-400.0,0.00030684,2]
[385358601,1757790791814,-620.45,0.00030684,2]
[385358602,1757790791824,-862.8,0.00030684,2]
[385358603,1757790791834,-537.7,0.00030684,2]
[385358604,1757790791844,-505.66,0.00030684,2]
[385358605,1757790791854,-400.0,0.00030684,2]
[385358606,1757790791864,-427.09,0.00030684,2]
[385358607,1757790791875,-400.0,0.00030684,2]
[385358608,1757790791884,-1263.32,0.00030684,2]
[385358609,1757790791894,-400.0,0.00030684,2]
[385358610,1757790791903,-400.0,0.00030684,2]
[385358611,1757790791913,-400.0,0.00030684,2]
[385358612,1757790791923,-786.15,0.00030684,2]
[385358613,1757790791933,-4665.54,0.00030684,2]
[385358614,1757790791942,-400.0,0.00030684,2]
[385358615,1757790791955,-769.42,0.00030684,2]
[385358616,1757790791964,-958.92,0.00030684,2]
[385358617,1757790791974,-400.0,0.00030684,2]
[385358618,1757790791984,-1162.64,0.00030684,2]
[385358619,1757790791994,-843.12,0.00030684,2]
[385358620,1757790792003,-462.95264186,0.00030684,2]
[385358621,1757790792014,-830.89,0.00030684,2]
[385358622,1757790792023,-400.0,0.00030684,2]
[385358623,1757790792033,-400.0,0.00030684,2]
[385358624,1757790792042,-871.15,0.00030684,2]
[385358625,1757790792052,-484.74,0.00030684,2]
[385358626,1757790792061,-400.0,0.00030684,2]
[385358627,1757790792071,-1106.22,0.00030684,2]
[385358628,1757790792081,-582.6,0.00030684,2]
[385358629,1757790792090,-1197.3,0.00030684,2]
[385358630,1757790792100,-400.0,0.00030684,2]
[385358631,1757790792109,-3316.79,0.00030684,2]
[385358632,1757790792119,-400.0,0.00030684,2]
[385358633,1757790792128,-400.0,0.00030684,2]
[385358634,1757790792137,-400.0,0.00030684,2]
[385358635,1757790792146,-898.38,0.00030684,2]
[385358636,1757790792155,-1081.81,0.00030684,2]
[385358637,1757790792164,-400.0,0.00030684,2]
[385358638,1757790792174,-744.46,0.00030684,2]
[385358639,1757790792183,-1406.57,0.00030684,2]
[385358640,1757790792193,-420.47,0.00030684,2]
[385358641,1757790792208,-2017.53,0.00030684,2]
[385358642,1757790792218,-1035.92,0.00030684,2]
[385358643,1757790792228,-752.16,0.00030684,2]
[385358644,1757790792237,-400.0,0.00030684,2]
[385358645,1757790792247,-729.82,0.00030684,2]
[385358646,1757790792256,-843.08,0.00030684,2]
[385358647,1757790792265,-400.0,0.00030684,2]
[385358648,1757790792275,-924.42,0.00030684,2]
[385358649,1757790792285,-1791.52,0.00030684,2]
[385358650,1757790792295,-715.39,0.00030684,2]
[385358651,1757790792305,-508.28200573,0.00030684,2]
[385358652,1757790792315,-400.0,0.00030684,2]
[385358653,1757790792325,-905.52,0.00030684,2]
[385358654,1757790792335,-543.24,0.00030684,2]
[385358655,1757790792345,-405.71,0.00030684,2]
[385358656,1757790792354,-1125.91,0.00030684,2]
[385358657,1757790792364,-405.06,0.00030684,2]
[385358658,1757790792374,-897.14,0.00030684,2]
[385358659,1757790792383,-838.71,0.00030684,2]
[385358660,1757790792393,-778.35,0.00030684,2]
[385358661,1757790792403,-1550.32,0.00030684,2]
[385358662,1757790792413,-1097.98,0.00030684,2]
[385358663,1757790792422,-519.54,0.00030684,2]
[385358664,1757790792432,-400.0,0.00030684,2]
[385358665,1757790792441,-746.12,0.00030684,2]
[385358666,1757790792453,-400.0,0.00030684,2]
[385358667,1757790792463,-812.08,0.00030684,2]
[385358668,1757790792472,-1172.1,0.00030684,2]
[385358669,1757790792481,-400.0,0.00030684,2]
[385358670,1757790792492,-1004.56,0.00030684,2]
[385358671,1757790792503,-406.12,0.00030684,2]
[385358672,1757790792512,-738.83,0.00030684,2]
[385358673,1757790792522,-400.0,0.00030684,2]
[385358674,1757790792531,-1445.07,0.00030684,2]
[385358675,1757790792540,-400.0,0.00030684,2]
[385358676,1757790792550,-681.1,0.00030684,2]
[385358677,1757790792559,-400.0,0.00030684,2]
[385358678,1757790792569,-400.0,0.00030684,2]
[385358679,1757790792578,-1822.15,0.00030684,2]
[385358680,1757790792588,-636.43,0.00030684,2]
[385358681,1757790792598,-417.32,0.00030684,2]
[385358682,1757790792607,-400.0,0.00030684,2]
[385358683,1757790792616,-1015.89,0.00030684,2]
[385358684,1757790792626,-983.53,0.00030684,2]
[385358685,1757790792635,-722.69,0.00030684,2]
[385358686,1757790792645,-761.25,0.00030684,2]
[385358687,1757790792654,-670.74,0.00030684,2]
[385358688,1757790792663,-400.0,0.00030684,2]
[385358689,1757790792672,-458.09,0.00030684,2]
[385358690,1757790792681,-589.72,0.00030684,2]
[385358691,1757790792691,-411.62,0.00030684,2]
[385358692,1757790792703,-526.26609971,0.00030684,2]
[385358693,1757790792713,-1393.14,0.00030684,2]
[385358694,1757790792722,-422.08,0.00030684,2]
[385358695,1757790792732,-400.0,0.00030684,2]
[385358696,1757790792743,-400.0,0.00030684,2]
[385358697,1757790792752,-1286.51,0.00030684,2]
[385358698,1757790792763,-400.0,0.00030684,2]
[385358699,1757790792772,-400.0,0.00030684,2]
[385358700,1757790792782,-1836.39,0.00030684,2]
[385358701,1757790792791,-237.10064148,0.00030684,2]
[385358702,1757790792801,-806.89,0.00030684,2]
[385358703,1757790792810,-3209.32,0.00030684,2]
[385358704,1757790792820,-1118.88,0.00030684,2]
[385358705,1757790792830,-2346.72,0.00030684,2]
[385358706,1757790792840,-862.09,0.00030684,2]
[385358707,1757790792849,-375.61533009,0.00030684,2]
[385358708,1757790792858,-1033.98,0.00030684,2]
[385358709,1757790792868,-400.0,0.00030684,2]
[385358710,1757790792877,-702.99,0.00030684,2]
[385358711,1757790792886,-1450.08,0.00030684,2]
[385358712,1757790792896,-896.46,0.00030684,2]
[385358713,1757790792905,-524.85,0.00030684,2]
[385358714,1757790792914,-837.65,0.00030684,2]
[385358715,1757790792923,-941.17,0.00030684,2]
[385358716,1757790792933,-872.8,0.00030684,2]
[385358717,1757790792943,-727.17,0.00030684,2]
[385358718,1757790792953,-711.83,0.00030684,2]
[385358719,1757790792963,-765.36,0.00030684,2]
[385358720,1757790792973,-778.2,0.00030684,2]
[385358721,1757790792982,-2033.09,0.00030684,2]
[385358722,1757790792992,-980.63,0.00030684,2]
[385358723,1757790793001,-677.3,0.00030684,2]
[385358724,1757790793010,-538.72,0.00030684,2]
[385358725,1757790793021,-1183.03,0.00030684,2]
[385358726,1757790793030,-722.19,0.00030684,2]
[385358727,1757790793039,-1015.48,0.00030684,2]
[385358728,1757790793048,-599.03,0.00030684,2]
[385358729,1757790793057,-965.24,0.00030684,2]
[385358730,1757790793067,-653.28,0.00030684,2]
[385358731,1757790793076,-400.0,0.00030684,2]
[385358732,1757790793085,-974.74,0.00030684,2]
[385358733,1757790793095,-532.11,0.00030684,2]
[385358734,1757790793104,-775.6,0.00030684,2]
[385358735,1757790793113,-400.0,0.00030684,2]
[385358736,1757790793122,-400.0,0.00030684,2]
[385358737,1757790793131,-1047.99,0.00030684,2]
[385358738,1757790793141,-867.54,0.00030684,2]
[385358739,1757790793150,-400.0,0.00030684,2]
[385358740,1757790793159,-741.23,0.00030684,2]
[385358741,1757790793169,-603.59,0.00030684,2]
[385358742,1757790793178,-2266.8,0.00030684,2]
[385358743,1757790793187,-835.84,0.00030684,2]
[385358744,1757790793196,-1243.58,0.00030684,2]
[385358745,1757790793206,-526.24,0.00030684,2]
[385358746,1757790793215,-605.54,0.00030684,2]
[385358747,1757790793563,-502.15,0.00030684,2]
[385358748,1757790793575,-495.47,0.00030684,2]
[385358749,1757790793585,-462.88,0.00030684,2]
[385358750,1757790793595,-858.84,0.00030684,2]
[385358751,1757790793606,-2089.21,0.00030684,2]
[385358752,1757790793616,-708.83,0.00030684,2]
[385358753,1757790793626,-1484.39,0.00030684,2]
[385358754,1757790793635,-1139.82,0.00030684,2]
[385358755,1757790793645,-676.37,0.00030684,2]
[385358756,1757790793654,-920.38,0.00030684,2]
[385358757,1757790793663,-785.36,0.00030684,2]
[385358758,1757790793673,-400.0,0.00030684,2]
[385358759,1757790793682,-1042.18,0.00030684,2]
[385358760,1757790793691,-714.23,0.00030684,2]
[385358761,1757790793701,-894.39,0.00030684,2]
[385358762,1757790793710,-647.42,0.00030684,2]
[385358763,1757790793720,-857.85,0.00030684,2]
[385358764,1757790793729,-513.3,0.00030684,2]
[385358765,1757790793739,-924.41,0.00030684,2]
[385358766,1757790793748,-2338.03,0.00030684,2]
[385358767,1757790793758,-1469.88,0.00030684,2]
[385358768,1757790793767,-841.74,0.00030684,2]
[385358769,1757790793777,-722.3,0.00030684,2]
[385358770,1757790793786,-415.27,0.00030684,2]
[385358771,1757790793796,-767.19,0.00030684,2]
[385358772,1757790793805,-814.0,0.00030684,2]
[385358773,1757790793814,-1229.51,0.00030684,2]
[385358774,1757790793824,-844.21,0.00030684,2]
[385358775,1757790793833,-1485.88,0.00030684,2]
[385358776,1757790793843,-449.16,0.00030684,2]
[385358777,1757790793852,-2265.68,0.00030684,2]
[385358778,1757790793861,-865.66,0.00030684,2]
[385358779,1757790793871,-863.57,0.00030684,2]
[385358780,1757790793880,-572.0,0.00030684,2]
[385358781,1757790793890,-2112.49,0.00030684,2]
[385358782,1757790793902,-1107.28,0.00030684,2]
[385358783,1757790793911,-510.21,0.00030684,2]
[385358784,1757790793920,-400.0,0.00030684,2]
[385358785,1757790793930,-1170.47,0.00030684,2]
[385358786,1757790793939,-841.3,0.00030684,2]
[385358787,1757790793950,-1028.51,0.00030684,2]
[385358788,1757790793959,-856.96,0.00030684,2]
[385358789,1757790793970,-400.0,0.00030684,2]
[385358790,1757790793979,-906.61,0.00030684,2]
[385358791,1757790793989,-1458.58,0.00030684,2]
[385358792,1757790793999,-701.85,0.00030684,2]
[385358793,1757790794008,-1006.96,0.00030684,2]
[385358794,1757790794019,-4256.1,0.00030684,2]
[385358795,1757790794028,-728.15,0.00030684,2]
[385358796,1757790794037,-400.0,0.00030684,2]
[385358797,1757790794047,-925.96,0.00030684,2]
[385358798,1757790794057,-400.0,0.00030684,2]
[385358799,1757790794066,-445.69,0.00030684,2]
[385358800,1757790794075,-1198.57,0.00030684,2]
[385358801,1757790794084,-1974.67,0.00030684,2]
[385358802,1757790794093,-2857.69,0.00030684,2]
[385358803,1757790794103,-847.13,0.00030684,2]
[385358804,1757790794113,-2990.98,0.00030684,2]
[385358805,1757790794123,-400.0,0.00030684,2]
[385358806,1757790794133,-834.58,0.00030684,2]
[385358807,1757790794142,-2302.98,0.00030684,2]
[385358808,1757790794152,-400.0,0.00030684,2]
[385358809,1757790794162,-2111.33,0.00030684,2]
[385358810,1757790794171,-1747.56,0.00030684,2]
[385358811,1757790794180,-466.82,0.00030684,2]
[385358812,1757790794190,-400.0,0.00030684,2]
[385358813,1757790794199,-2233.25,0.00030684,2]
[385358814,1757790794209,-1255.2,0.00030684,2]
[385358815,1757790794218,-400.0,0.00030684,2]
[385358816,1757790794227,-1963.87,0.00030684,2]
[385358817,1757790794237,-694.91,0.00030684,2]
[385358818,1757790794247,-1143.85,0.00030684,2]
[385358819,1757790794257,-400.0,0.00030684,2]
[385358820,1757790794266,-400.0,0.00030684,2]
[385358821,1757790794275,-807.66,0.00030684,2]
[385358822,1757790794285,-400.0,0.00030684,2]
[385358823,1757790794295,-927.88,0.00030684,2]
[385358824,1757790794304,-2263.39,0.00030684,2]
[385358825,1757790794314,-952.59,0.00030684,2]
[385358826,1757790794324,-931.48,0.00030684,2]
[385358827,1757790794333,-400.0,0.00030684,2]
[385358828,1757790794342,-669.04,0.00030684,2]
[385358829,1757790794352,-1333.33,0.00030684,2]
[385358830,1757790794362,-944.31,0.00030684,2]
[385358831,1757790794372,-400.0,0.00030684,2]
[385358832,1757790794381,-711.99,0.00030684,2]
[385358833,1757790794391,-1798.63,0.00030684,2]
[385358834,1757790794400,-1030.24,0.00030684,2]
[385358835,1757790794410,-568.52,0.00030684,2]
[385358836,1757790794420,-977.53,0.00030684,2]
[385358837,1757790794431,-1079.08,0.00030684,2]
[385358838,1757790794440,-400.0,0.00030684,2]
[385358839,1757790794450,-923.82,0.00030684,2]
[385358840,1757790794460,-1374.51,0.00030684,2]
[385358841,1757790794469,-539.76,0.00030684,2]
[385358842,1757790794479,-400.0,0.00030684,2]
[385358843,1757790794489,-707.41,0.00030684,2]
[385358844,1757790794502,-532.15,0.00030684,2]
[385358845,1757790794512,-1021.66,0.00030684,2]
[385358846,1757790794522,-796.82,0.00030684,2]
[385358847,1757790794532,-786.29,0.00030684,2]
[385358848,1757790794542,-1683.27,0.00030684,2]
[385358849,1757790794552,-923.85,0.00030684,2]
[385358850,1757790794562,-585.84,0.00030684,2]
[385358851,1757790794571,-1254.84,0.00030684,2]
[385358852,1757790794581,-1026.54,0.00030684,2]
[385358853,1757790794589,-400.0,0.00030684,2]
[385358854,1757790794599,-492.79,0.00030684,2]
[385358855,1757790794609,-2328.06,0.00030684,2]
[385358856,1757790794618,-1854.12,0.00030684,2]
[385358857,1757790794628,-3059.22,0.00030684,2]
[385358858,1757790794637,-1159.49,0.00030684,2]
[385358859,1757790794648,-1000.0,0.00030684,2]
[385358860,1757790794659,-618.58,0.00030684,2]
[385358861,1757790794669,-1262.94,0.00030684,2]
[385358862,1757790794678,-400.0,0.00030684,2]
[385358863,1757790794689,-400.0,0.00030684,2]
[385358864,1757790794699,-666.27,0.00030684,2]
[385358865,1757790794709,-2778.98,0.00030684,2]
[385358866,1757790794718,-1602.35,0.00030684,2]
[385358867,1757790794728,-400.0,0.00030684,2]
[385358868,1757790794737,-400.0,0.00030684,2]
[385358869,1757790794747,-438.09,0.00030684,2]
[385358870,1757790794756,-344.99,0.00030684,2]
[385358871,1757790794766,-523.76,0.00030684,2]
[385358872,1757790794775,-734.11,0.00030684,2]
[385358873,1757790794785,-634.16,0.00030684,2]
[385358874,1757790794795,-887.05,0.00030684,2]
[385358875,1757790794804,-400.0,0.00030684,2]
[385358876,1757790794813,-942.86,0.00030684,2]
[385358877,1757790794823,-1697.7,0.00030684,2]
[385358878,1757790794832,-400.0,0.00030684,2]
[385358879,1757790794842,-1288.99,0.00030684,2]
[385358880,1757790794851,-1448.36,0.00030684,2]
[385358881,1757790794860,-2431.97,0.00030684,2]
[385358882,1757790794870,-488.5,0.00030684,2]
[385358883,1757790794879,-655.13,0.00030684,2]
[385358884,1757790794889,-693.6,0.00030684,2]
[385358885,1757790794901,-985.78,0.00030684,2]
[385358886,1757790794914,-914.74,0.00030684,2]
[385358887,1757790794923,-1199.53,0.00030684,2]
[385358888,1757790794933,-400.0,0.00030684,2]